bitfinex/quotes_ETHUSD_20241116
["timestamp","ask_amount","ask_price","bid_price","bid_amount"]
[1731720663462,3.22265,3103.1,3102.5,0.8202]
[1731720664115,3.22265,3103.1,3102.5,4.04339]
[1731720664328,3.22231,3103.4,3102.8,3.22288]
[1731720664459,3.22231,3103.4,3102.5,1.24243123]
[1731720664460,3.2219,3103.8,3103.1,3.22256]
[1731720664666,0.7726,3103.9,3103.4,3.22224]
[1731720665107,3.22153,3104.2,3103.2,0.8202]
[1731720665108,3.22186,3103.8,3103.2,0.8202]
[1731720665691,3.22202,3103.7,3103.2,0.8202]
[1731720666091,3.22168,3104.0,3103.2,4.04261]
[1731720666292,3.543918,3103.9,3103.3,3.22236]
[1731720667086,3.22155,3104.1,3103.3,3.22236]
[1731720667687,3.22121,3104.5,3103.7,3.22187]
[1731720667926,0.7662,3104.7,3103.2,0.8202]
[1731720667927,3.22151,3104.2,3103.5,3.22213]
[1731720668081,3.543661,3104.2,3103.5,3.22213]
[1731720668288,3.22154,3104.1,3103.5,3.22213]
[1731720670042,0.322151,3104.2,3103.7,3.22195]
[1731720670354,3.22113,3104.5,3103.9,4.05012]
[1731720670485,3.22133,3104.4,3103.9,0.8284]
[1731720671096,3.619763,3104.6,3103.9,0.8284]
[1731720671499,3.619763,3104.6,3103.9,4.05006]
[1731720671500,0.398713,3104.6,3103.9,4.05006]
[1731720671735,3.22084,3104.8,3104.1,3.22154]
[1731720672031,3.221,3104.7,3104.0,3.28603023]
[1731720672202,3.542924,3104.8,3104.2,3.22141]
[1731720672401,3.22092,3104.7,3104.0,3.28600023]
[1731720672602,3.22092,3104.7,3104.1,3.22149]
[1731720673052,0.322084,3104.8,3104.1,3.22149]
[1731720673807,3.542984,3104.8,3104.1,3.22149]
[1731720674115,3.22092,3104.7,3104.0,0.06443023]
[1731720674325,3.22092,3104.7,3103.4,0.8284]
[1731720674326,3.22154,3104.1,3103.4,0.8284]
[1731720675251,3.22179,3103.9,3103.4,0.8284]
[1731720675450,3.22244,3103.3,3103.0,0.8284]
[1731720675646,3.22244,3103.3,3102.7,0.8284]
[1731720676085,3.22249,3103.2,3102.7,0.8284]
[1731720676500,3.22263,3103.1,3102.5,0.3219]
[1731720677547,3.22262,3103.1,3102.5,0.3219]
[1731720677950,3.22279,3102.9,3102.5,0.3219]
[1731720678153,3.22291,3102.8,3102.6,0.3219]
[1731720678408,3.2231,3102.6,3102.3,0.8284]
[1731720679350,0.7662,3103.1,3102.0,0.63586606]
[1731720679553,3.22307,3102.7,3102.0,0.63586606]
[1731720679794,3.2231,3102.6,3102.0,3.85958606]
[1731720679958,3.22323,3102.5,3102.0,0.63586606]
[1731720680676,3.22332,3102.4,3102.0,0.63586606]
[1731720680999,3.22343,3102.3,3102.0,0.63586606]
[1731720681302,3.22362,3102.1,3102.0,0.63586606]
[1731720682267,0.7662,3102.4,3102.0,0.63586606]
[1731720682596,3.22344,3102.3,3102.0,0.63586606]
[1731720683271,3.22357,3102.2,3102.0,0.63586606]
[1731720683651,3.22357,3102.2,3101.6,3.22411]
[1731720684023,3.22275,3103.0,3102.4,0.8284]
[1731720684155,0.7662,3103.3,3102.4,1.233579]
[1731720684498,3.22249,3103.2,3102.5,0.06445705]
[1731720684651,3.22249,3103.2,3102.6,3.22302]
[1731720684860,3.22259,3103.1,3102.6,3.22302]
[1731720685069,3.22259,3103.1,3102.5,0.06445705]
[1731720685418,3.2226,3103.1,3102.5,0.06445705]
[1731720685880,3.2226,3103.1,3102.5,3.28765705]
[1731720686262,3.2226,3103.1,3102.5,3.2232]
[1731720686682,3.22249,3103.2,3102.6,3.22308]
[1731720687107,3.22249,3103.2,3102.5,3.69281606]
[1731720687316,3.22258,3103.1,3102.5,3.69281606]
[1731720688477,3.22249,3103.2,3102.6,0.23549473]
[1731720688798,3.22269,3103.0,3102.4,0.8284]
[1731720689004,3.22269,3103.0,3102.5,0.2355441]
[1731720689208,3.22269,3103.0,3102.6,0.2355441]
[1731720689387,3.22269,3103.0,3102.4,4.05164]
[1731720689594,3.22289,3102.8,3102.5,0.23568962]
[1731720689794,3.2231,3102.6,3102.1,0.7677]
[1731720689974,3.22286,3102.9,3102.1,0.7677]
[1731720689975,3.22286,3102.9,3102.2,3.22345]
[1731720690319,3.22269,3103.0,3102.4,3.22327]
[1731720690607,3.22308,3102.7,3102.1,0.7677]
[1731720690762,3.22313,3102.6,3102.2,0.23583764]
[1731720690963,3.22297,3102.8,3102.2,3.22349]
[1731720692561,3.22269,3103.0,3102.2,3.22349]
[1731720692764,6.44568,3102.9,3102.3,0.2360113]
[1731720693080,3.22279,3102.9,3102.2,3.28795357]
[1731720693283,0.777,3103.3,3102.3,0.23600378]
[1731720693284,3.22261,3103.1,3102.3,0.23600378]
[1731720693471,3.99945,3103.3,3102.6,3.22302]
[1731720694009,3.22249,3103.2,3102.6,3.22302]
[1731720694235,3.22276,3103.0,3102.4,3.22322]
[1731720694434,3.22298,3102.8,3102.1,3.99124]
[1731720694565,3.22298,3102.8,3102.2,0.95759883]
[1731720694771,3.22309,3102.7,3102.2,0.95759883]
[1731720695069,3.99945,3103.3,3102.1,0.7677]
[1731720695070,3.2231,3102.6,3102.1,0.7677]
[1731720695423,3.22331,3102.4,3101.9,3.22382]
[1731720695564,3.22331,3102.4,3102.0,0.727231]
[1731720696168,4.0331,3102.6,3102.0,0.727231]
[1731720696366,6.44592,3102.8,3102.0,3.22363]
[1731720696613,3.22305,3102.7,3102.1,3.22357]
[1731720698200,3.22294,3102.8,3102.1,6.44712]
[1731720698394,3.22311,3102.6,3102.1,3.22355]
[1731720698595,3.22311,3102.6,3101.9,3.22379]
[1731720698596,3.22321,3102.5,3101.9,3.22379]
[1731720699216,6.44671,3102.4,3101.8,0.7918]
[1731720699706,0.403262,3102.9,3101.8,0.7918]
[1731720699707,0.403262,3102.9,3101.9,0.06447252]
[1731720699907,0.81,3103.0,3102.4,3.2232]
[1731720700070,4.03269,3103.0,3102.4,3.2232]
[1731720700867,3.22282,3102.9,3102.3,3.2234]
[1731720701068,3.22282,3102.9,3102.2,3.22348]
[1731720701410,3.22282,3102.9,3102.2,3.545828]
[1731720701905,3.22301,3102.7,3102.2,3.545828]
[1731720702107,3.22282,3102.9,3102.2,3.545828]
[1731720702511,3.2229,3102.8,3102.2,3.545828]
[1731720702993,3.22282,3102.9,3102.2,3.545828]
[1731720703168,3.22291,3102.8,3102.2,3.545828]
[1731720704019,3.22303,3102.7,3102.0,3.2237]
[1731720704167,3.22323,3102.5,3102.0,3.2237]
[1731720704368,3.2231,3102.6,3102.0,3.2237]
[1731720704584,3.22303,3102.7,3102.0,3.2237]
[1731720704585,3.22321,3102.5,3102.0,3.2237]
[1731720705186,6.44612,3102.7,3102.0,3.94764]
[1731720705510,3.22311,3102.6,3102.0,3.94764]
[1731720706971,3.22326,3102.5,3101.9,3.22382]
[1731720707284,3.22326,3102.5,3101.9,3.55382]
[1731720707879,6.44558,3102.9,3101.9,3.55382]
[1731720708212,6.44558,3102.9,3101.6,3.88234964]
[1731720708213,3.22361,3102.2,3101.6,3.22412]
[1731720708522,3.22373,3102.0,3101.5,4.05154]
[1731720708675,3.22373,3102.0,3101.6,0.02]
[1731720709721,3.22361,3102.2,3101.5,4.05154]
[1731720709900,3.22331,3102.4,3101.8,3.22391]
[1731720710079,7.27049,3102.6,3101.9,3.22382]
[1731720710273,0.8242,3102.6,3102.1,0.3219]
[1731720710478,3.22349,3102.3,3102.0,0.8273]
[1731720711629,0.8242,3102.6,3101.6,4.05139]
[1731720711793,3.22359,3102.2,3101.6,4.05139]
[1731720713010,3.22359,3102.2,3101.6,0.8273]
[1731720713232,3.22373,3102.0,3101.6,0.8273]
[1731720713421,3.22359,3102.2,3101.6,0.8273]
[1731720713422,3.22359,3102.2,3101.6,4.05143]
[1731720714200,3.22314,3102.6,3102.0,3.22371]
[1731720714404,3.22293,3102.8,3102.0,3.22371]
[1731720714405,3.22294,3102.8,3102.2,3.2235]
[1731720714661,3.2231,3102.6,3102.2,0.7807]
[1731720715733,3.22294,3102.8,3102.2,0.7807]
[1731720715934,3.22294,3102.8,3102.3,3.22336]
[1731720717338,3.22273,3103.0,3102.3,3.63021235]
[1731720717542,4.03513,3103.2,3102.4,0.064461]
[1731720717758,4.03513,3103.2,3102.6,4.00375]
[1731720717759,3.22253,3103.2,3102.6,4.00375]
[1731720718461,6.4451,3103.2,3102.6,4.00375]
[1731720718616,3.22262,3103.1,3102.6,0.7807]
[1731720719018,3.22269,3103.0,3102.6,0.7807]
[1731720719412,3.22253,3103.2,3102.6,0.7807]
[1731720719657,3.22253,3103.2,3102.6,4.00371]
[1731720720567,3.22259,3103.1,3102.6,0.7807]
[1731720720870,3.22255,3103.2,3102.6,0.7807]
[1731720721068,3.22231,3103.4,3102.6,0.7807]
[1731720721361,3.22191,3103.8,3103.1,3.2225]
[1731720721518,3.22191,3103.8,3103.2,4.00316]
[1731720721716,3.22188,3103.8,3103.2,4.00308]
[1731720721914,3.22167,3104.0,3102.8,0.3219]
[1731720721915,3.22237,3103.3,3102.8,0.7807]
[1731720722170,3.22237,3103.3,3102.6,0.33]
[1731720722171,3.2228,3102.9,3102.6,1.1107]
[1731720722471,4.03543,3102.9,3102.3,0.7807]
[1731720722621,3.22299,3102.7,3102.3,0.7807]
[1731720722821,4.03541,3102.9,3102.3,0.7807]
[1731720723177,3.22223,3103.5,3102.4,0.33]
[1731720723178,3.22239,3103.3,3102.4,0.33]
[1731720723318,11.92,3103.9,3103.1,4.00322]
[1731720723319,3.22193,3103.8,3103.1,4.00322]
[1731720723515,3.22196,3103.7,3103.1,0.7807]
[1731720723914,3.22206,3103.6,3103.1,0.7807]
[1731720724221,3.22185,3103.8,3103.2,3.22247]
[1731720724442,0.8126,3104.2,3103.1,0.7807]
[1731720724443,3.22212,3103.6,3103.1,0.7807]
[1731720725295,3.22212,3103.6,3103.1,1.181032]
[1731720725439,3.22178,3103.9,3103.1,1.181032]
[1731720725640,3.22206,3103.6,3103.1,0.7807]
[1731720725970,3.22218,3103.5,3103.1,0.7807]
[1731720726367,3.22227,3103.4,3103.1,0.7807]
[1731720726672,3.2227,3103.0,3102.7,0.814]
[1731720726854,0.7845,3103.6,3102.2,6.2235]
[1731720726855,3.223,3102.7,3102.3,0.814]
[1731720727055,3.22322,3102.5,3102.3,0.814]
[1731720727281,3.223,3102.7,3102.3,0.814]
[1731720727484,3.22311,3102.6,3102.3,0.814]
[1731720728275,3.223,3102.7,3102.3,0.814]
[1731720728683,3.22331,3102.4,3102.3,0.814]
[1731720728862,3.22322,3102.5,3102.3,0.814]
[1731720729182,4.00722,3103.0,3102.0,0.814]
[1731720729183,3.22352,3102.2,3102.0,0.814]
[1731720729548,3.22331,3102.4,3102.0,0.814]
[1731720730447,3.22343,3102.3,3102.0,0.814]
[1731720730640,3.22331,3102.4,3102.0,0.814]
[1731720730848,3.22356,3102.2,3102.0,0.814]
[1731720732680,3.22356,3102.2,3101.7,5.57189989]
[1731720732888,0.7845,3102.7,3101.7,1.689]
[1731720733091,3.22393,3101.8,3101.7,0.875]
[1731720733898,4.00843,3101.8,3101.7,0.875]
[1731720734051,4.731655,3101.8,3101.7,0.875]
[1731720734901,5.281655,3101.8,3101.7,0.875]
[1731720735965,0.7845,3101.0,3100.7,0.2018791]
[1731720736154,3.22497,3100.8,3100.7,0.2018791]
[1731720736887,3.22422,3101.6,3100.8,4.03889]
[1731720737093,3.22421,3101.6,3100.8,7.26377]
[1731720737449,3.22425,3101.5,3100.9,3.22486]
[1731720738189,4.8677635,3101.7,3101.0,3.22468]
[1731720738357,3.22404,3101.7,3101.0,3.22468]
[1731720739192,4.00834,3101.9,3101.0,3.22468]
[1731720739507,3.22374,3102.0,3101.4,0.814]
[1731720739707,3.22374,3102.0,3101.4,1.217845]
[1731720739877,3.22374,3102.0,3101.4,0.814]
[1731720740206,3.22367,3102.1,3101.4,4.03834]
[1731720740416,4.00797,3102.3,3101.5,3.22424]
[1731720740614,3.22353,3102.2,3101.5,3.22424]
[1731720740772,3.22353,3102.2,3101.6,0.403824]
[1731720741469,3.22353,3102.2,3101.6,3.627934]
[1731720742212,3.22353,3102.2,3101.6,0.403824]
[1731720743063,3.22353,3102.2,3101.6,3.627894]
[1731720744216,3.22353,3102.2,3101.6,0.403824]
[1731720744380,3.22353,3102.2,3101.7,0.814]
[1731720746214,3.22353,3102.2,3101.7,4.03803]
[1731720748727,3.22317,3102.6,3101.9,3.2238]
[1731720748889,3.22293,3102.8,3102.1,0.7715]
[1731720749083,3.22293,3102.8,3102.2,3.22351]
[1731720749287,3.0,3103.2,3102.1,0.7715]
[1731720749288,3.22252,3103.2,3102.1,0.7715]
[1731720749521,0.622244,3103.1,3102.5,3.22312]
[1731720749933,3.844874,3103.1,3102.5,3.22312]
[1731720750148,3.844874,3103.1,3102.3,3.99487]
[1731720750149,3.2227,3103.0,3102.3,3.99487]
[1731720750441,0.622244,3103.1,3102.3,3.99487]
[1731720750586,0.622244,3103.1,3102.5,3.2232]
[1731720750938,7.818739,3103.6,3102.7,4.04902]
[1731720750939,3.2223,3103.4,3102.7,4.04902]
[1731720751519,3.22238,3103.3,3102.7,4.04902]
[1731720751727,0.644468,3103.2,3102.7,4.04902]
[1731720751931,3.2219,3103.8,3102.8,0.06445616]
[1731720752140,0.8333,3103.9,3103.3,3.22233]
[1731720752350,3.22183,3103.9,3103.3,3.22233]
[1731720752631,0.8333,3104.2,3103.3,3.22233]
[1731720752632,3.22148,3104.2,3103.3,3.22233]
[1731720752838,0.322148,3104.1,3103.5,3.22207]
[1731720752986,0.322148,3104.1,3103.6,3.22206]
[1731720753186,0.322148,3104.1,3103.5,3.22207]
[1731720754119,0.322148,3104.1,3103.6,0.8261]
[1731720754432,3.22178,3103.9,3103.6,0.8261]
[1731720754682,0.8333,3104.5,3103.2,0.8261]
[1731720754683,3.22204,3103.7,3103.2,0.8261]
[1731720755030,3.22208,3103.6,3103.0,3.2226]
[1731720755229,3.22179,3103.9,3103.0,3.2226]
[1731720755230,3.22197,3103.7,3103.0,6.44522]
[1731720755426,0.322178,3103.8,3102.9,0.8261]
[1731720755662,3.22131,3104.4,3103.6,3.22196]
[1731720755926,3.22131,3104.4,3103.7,0.8261]
[1731720756586,3.22164,3104.1,3103.7,0.8261]
[1731720756729,0.644316,3104.0,3103.7,0.8261]
[1731720756929,3.22152,3104.2,3103.7,0.8261]
[1731720757145,3.22122,3104.5,3103.7,0.8261]
[1731720757146,3.22122,3104.5,3103.7,4.04802]
[1731720757367,0.8333,3104.7,3103.7,0.8261]
[1731720757368,3.22144,3104.2,3103.7,0.8261]
[1731720757546,0.322144,3104.1,3103.7,0.8261]
[1731720757881,3.22165,3104.0,3103.7,0.8261]
[1731720758533,3.22185,3103.8,3103.7,0.8261]
[1731720758748,3.22185,3103.8,3103.3,0.8261]
[1731720759333,3.22215,3103.6,3102.8,3.22288]
[1731720759531,3.22215,3103.6,3102.9,4.04886]
[1731720759785,3.22224,3103.5,3102.9,4.04886]
[1731720759966,3.22224,3103.5,3103.0,0.06444633]
[1731720760273,3.544464,3103.5,3103.0,3.22267]
[1731720760483,0.322224,3103.5,3103.0,3.22267]
[1731720760634,3.22204,3103.7,3103.0,3.22267]
[1731720761063,3.22208,3103.6,3103.0,3.22267]
[1731720761383,4.377044,3104.1,3102.5,0.8261]
[1731720761384,3.22265,3103.1,3102.5,0.8261]
[1731720761788,3.22235,3103.4,3102.6,3.2231]
[1731720762001,3.22235,3103.4,3102.5,0.8261]
[1731720762002,3.22281,3102.9,3102.5,0.8261]
[1731720762286,3.545091,3102.9,3102.5,0.8261]
[1731720762876,3.22261,3103.1,3102.5,4.04923]
[1731720763178,3.22286,3102.9,3102.5,0.8261]
[1731720763379,3.22291,3102.8,3102.5,0.8261]
[1731720765373,3.22266,3103.1,3102.3,3.22341]
[1731720765678,3.22279,3102.9,3102.3,3.22341]
[1731720766791,0.322266,3103.0,3102.2,0.8261]
[1731720766792,3.2232,3102.5,3102.2,0.8261]
[1731720767891,3.2232,3102.5,3101.9,4.02526]
[1731720768064,3.22261,3103.1,3102.5,3.2232]
[1731720768399,3.22242,3103.3,3102.7,3.22299]
[1731720771494,3.222,3103.7,3103.0,3.22258]
[1731720771696,3.222,3103.7,3102.8,0.8015]
[1731720771899,3.22186,3103.8,3103.2,3.22247]
[1731720772390,3.22186,3103.8,3103.0,3.22267]
[1731720772391,3.22206,3103.6,3103.0,3.22267]
[1731720772552,3.22206,3103.6,3103.0,3.625017]
[1731720772953,3.22206,3103.6,3103.1,3.22257]
[1731720773154,3.22186,3103.8,3103.2,3.28689396]
[1731720773668,3.22186,3103.8,3103.2,3.22245]
[1731720773827,3.22186,3103.8,3103.2,3.9136411]
[1731720774164,3.22186,3103.8,3103.2,3.9135911]
[1731720774460,3.22178,3103.9,3103.4,0.8015]
[1731720774621,3.22169,3104.0,3103.4,0.8015]
[1731720774826,3.22186,3103.8,3103.4,0.8015]
[1731720775022,3.22169,3104.0,3103.4,0.86594211]
[1731720775229,3.2216,3104.1,3103.5,3.22216]
[1731720776038,0.8151,3104.4,3103.4,0.8015]
[1731720776354,3.22181,3103.9,3103.4,0.8015]
[1731720776658,0.403629,3104.3,3103.4,0.8015]
[1731720776858,3.22228,3103.4,3103.0,0.8015]
[1731720777159,3.22228,3103.4,3102.8,4.02431]
[1731720777376,3.22228,3103.4,3102.8,0.8015]
[1731720777818,3.22228,3103.4,3102.8,4.02433]
[1731720778018,3.22228,3103.4,3102.8,5.049068]
[1731720778918,3.22249,3103.2,3102.8,1.826238]
[1731720779121,3.22228,3103.4,3102.8,0.8015]
[1731720779432,3.2221,3103.6,3102.3,6.49687722]
[1731720779433,3.22255,3103.2,3102.5,4.02463]
[1731720779633,6.44512,3103.2,3102.5,4.02463]
[1731720779954,3.2223,3103.4,3102.7,3.22297]
[1731720780160,0.8151,3103.7,3102.9,0.8015]
[1731720780161,3.22213,3103.6,3102.9,0.8015]
[1731720780333,3.2223,3103.4,3102.9,0.8015]
[1731720781015,3.22248,3103.2,3102.9,0.8015]
[1731720781175,3.22261,3103.1,3102.9,0.8015]
[1731720781339,3.22248,3103.2,3102.9,0.8015]
[1731720781726,3.22227,3103.4,3102.9,0.8015]
[1731720781921,3.22209,3103.6,3103.0,3.2226]
[1731720782141,3.22189,3103.8,3103.2,3.22239]
[1731720782430,3.22202,3103.7,3103.4,0.8015]
[1731720782823,3.22169,3104.0,3103.4,0.8015]
[1731720783058,3.22169,3104.0,3103.4,4.02220791]
[1731720783572,3.22176,3103.9,3103.4,4.02220791]
[1731720783979,3.22151,3104.2,3103.6,3.22205]
[1731720784128,3.22171,3104.0,3103.4,4.02218791]
[1731720784328,3.22161,3104.1,3103.5,3.22216]
[1731720784558,3.22166,3104.0,3103.4,4.02221791]
[1731720785282,1.218746,3104.3,3103.4,0.80001791]
[1731720785499,3.22216,3103.6,3103.1,0.63284819]
[1731720785788,3.22227,3103.4,3103.3,0.31]
[1731720787055,3.22227,3103.4,3103.0,0.828]
[1731720787382,3.22244,3103.3,3103.0,0.828]
[1731720787683,3.22227,3103.4,3103.0,0.828]
[1731720787882,3.22248,3103.2,3103.0,0.828]
[1731720788182,3.22264,3103.1,3102.7,0.828]
[1731720788390,3.2227,3103.0,3102.7,0.828]
[1731720789287,0.397899,3103.7,3102.3,0.828]
[1731720789288,3.22295,3102.8,3102.3,0.828]
[1731720789470,3.97962,3103.2,3102.4,3.22321]
[1731720789671,3.22261,3103.1,3102.5,3.22316]
[1731720790048,3.22269,3103.0,3102.4,3.22321]
[1731720790871,3.97962,3103.2,3102.4,3.22321]
[1731720791077,3.22275,3103.0,3102.3,4.11580111]
[1731720791386,3.22317,3102.6,3102.3,0.828]
[1731720791882,6.44637,3102.6,3102.2,0.33630533]
[1731720792089,3.22317,3102.6,3102.2,0.33630533]
[1731720792601,3.49687722,3103.4,3102.8,3.22282]
[1731720792602,3.22234,3103.4,3102.8,3.22282]
[1731720792907,3.22248,3103.2,3102.6,3.22301]
[1731720793107,3.22279,3102.9,3102.5,0.828]
[1731720793465,3.22289,3102.8,3102.5,0.828]
[1731720793811,3.22289,3102.8,3102.2,4.80418586]
[1731720794102,3.22295,3102.8,3102.2,4.80418586]
[1731720794278,0.7571,3103.5,3102.2,4.80418586]
[1731720794279,3.22315,3102.6,3102.2,1.16430533]
[1731720794710,3.22294,3102.8,3102.2,1.16430533]
[1731720794912,3.2229,3102.8,3102.3,3.22338]
[1731720795065,3.49687722,3103.5,3102.6,3.2231]
[1731720795066,3.22262,3103.1,3102.6,3.2231]
[1731720795261,3.22262,3103.1,3102.6,4.0542]
[1731720795769,3.22245,3103.3,3102.6,4.0542]
[1731720795964,3.2225,3103.2,3102.6,4.0542]
[1731720796164,3.22245,3103.3,3102.6,4.0542]
[1731720796165,3.22245,3103.3,3102.6,4.78195]
[1731720796404,3.22245,3103.3,3102.8,3.22287]
[1731720797102,3.98521,3103.5,3102.6,4.78195]
[1731720797103,3.22227,3103.4,3102.7,0.0644544]
[1731720797324,3.22227,3103.4,3102.8,3.22285]
[1731720797464,0.763,3104.1,3103.0,0.8311]
[1731720797789,3.22186,3103.8,3103.1,3.2225]
[1731720797998,3.22186,3103.8,3103.3,3.22235]
[1731720798528,3.22186,3103.8,3103.2,3.22246]
[1731720798820,3.22167,3104.0,3103.2,3.22246]
[1731720798821,3.22196,3103.7,3103.2,3.22246]
[1731720799107,3.22207,3103.6,3103.1,0.43823304]
[1731720799466,3.22209,3103.6,3103.1,0.43823304]
[1731720799782,3.22207,3103.6,3103.1,3.22251]
[1731720799991,3.22187,3103.8,3103.2,3.22238]
[1731720801507,3.22248,3103.2,3102.6,3.8311]
[1731720801705,3.22233,3103.4,3102.8,3.22286]
[1731720802294,0.763,3103.9,3103.2,0.8311]
[1731720802295,3.9848,3103.9,3103.2,0.8311]
[1731720802804,3.22202,3103.7,3103.2,0.8311]
[1731720803637,3.22207,3103.6,3103.2,0.8311]
[1731720804194,3.22217,3103.5,3103.2,0.8311]
[1731720804392,3.22207,3103.6,3103.2,0.8311]
[1731720805143,3.22218,3103.5,3103.2,0.8311]
[1731720805441,3.22207,3103.6,3103.0,3.22265]
[1731720805638,3.22207,3103.6,3103.0,4.05375]
[1731720805826,3.22219,3103.5,3103.0,4.05375]
[1731720806716,3.22219,3103.5,3103.0,0.8311]
[1731720807209,3.22256,3103.2,3103.0,0.8311]
[1731720807408,3.22256,3103.2,3102.6,0.8203]
[1731720807628,3.22256,3103.2,3102.6,4.3734]
[1731720808037,3.22252,3103.2,3102.6,4.3734]
[1731720808541,3.22259,3103.1,3102.6,4.3734]
[1731720808898,3.22259,3103.1,3102.6,1.1503]
[1731720809529,3.22299,3102.7,3102.6,0.33]
[1731720809728,4.373489,3102.7,3102.6,0.33]
[1731720810107,4.373489,3102.7,3102.0,0.8203]
[1731720810341,3.22332,3102.4,3102.2,0.33]
[1731720811260,3.2231,3102.6,3102.0,0.8203]
[1731720811567,3.22291,3102.8,3102.2,3.22344]
[1731720811748,3.22291,3102.8,3102.2,3.22342]
[1731720812887,3.22328,3102.5,3102.0,0.64106775]
[1731720813060,3.867908,3102.5,3102.0,0.64106775]
[1731720813265,6.44609,3102.7,3102.0,3.86471775]
[1731720813701,0.8282,3103.1,3102.0,3.86471775]
[1731720813995,3.2229,3102.8,3102.2,3.22342]
[1731720814181,3.22301,3102.7,3102.1,4.10834476]
[1731720814489,3.22285,3102.9,3102.1,0.88476476]
[1731720814653,3.22297,3102.8,3102.2,3.22347]
[1731720814856,3.22307,3102.7,3102.1,1.34546685]
[1731720815054,6.4457,3102.9,3102.1,1.34546685]
[1731720815259,6.4457,3102.9,3102.2,3.22345]
[1731720815591,3.2229,3102.8,3102.2,3.22345]
[1731720816369,3.22282,3102.9,3102.4,3.22328]
[1731720816695,3.22282,3102.9,3102.3,0.89456127]
[1731720816928,4.00829,3103.5,3101.9,3.0]
[1731720816929,3.22331,3102.4,3101.9,3.0]
[1731720817198,3.22328,3102.5,3102.0,0.33]
[1731720817579,3.22328,3102.5,3102.0,1.10203921]
[1731720817759,3.22304,3102.7,3102.0,4.32565921]
[1731720817955,3.2231,3102.6,3102.0,4.32565921]
[1731720818313,0.7861,3102.8,3102.0,1.10203921]
[1731720818490,6.44653,3102.5,3102.0,0.33]
[1731720818802,3.22347,3102.3,3102.0,0.33]
[1731720820591,3.22315,3102.6,3102.0,0.33]
[1731720820906,3.22315,3102.6,3102.0,3.55366]
[1731720821072,3.22315,3102.6,3102.1,4.0537]
[1731720821464,3.22315,3102.6,3102.1,0.8301]
[1731720822190,6.44634,3102.6,3102.1,0.8301]
[1731720822396,3.22312,3102.6,3102.1,0.8301]
[1731720822574,6.44631,3102.6,3102.1,0.8301]
[1731720822773,3.22329,3102.5,3102.1,0.8301]
[1731720822963,0.644641,3102.5,3102.1,0.8301]
[1731720823157,3.22341,3102.4,3102.1,0.8301]
[1731720823511,3.22353,3102.2,3102.0,0.33]
[1731720823798,3.22362,3102.1,3102.0,0.33]
[1731720824897,3.22389,3101.9,3101.6,0.8301]
[1731720825204,3.22389,3101.9,3101.7,0.33]
[1731720825205,3.22393,3101.8,3101.7,0.33]
[1731720825698,3.22393,3101.8,3101.5,0.33647982]
[1731720825909,0.400934,3102.3,3101.5,0.33647982]
[1731720826208,3.22435,3101.4,3101.3,0.64683652]
[1731720826564,3.22435,3101.4,3100.9,0.33653068]
[1731720826565,3.22463,3101.2,3100.9,0.33653068]
[1731720826986,3.22474,3101.1,3100.9,0.33653068]
[1731720827173,3.22476,3101.0,3100.9,0.33653068]
[1731720827372,3.869699,3101.0,3100.7,0.2018791]
[1731720827604,3.22497,3100.8,3100.7,0.2018791]
[1731720827805,3.22492,3100.9,3100.7,0.2018791]
[1731720827963,6.44988,3100.9,3100.7,0.2018791]
[1731720828300,3.22492,3100.9,3100.7,0.2018791]
[1731720829005,3.22497,3100.8,3100.7,0.2018791]
[1731720830696,3.22487,3100.9,3100.7,0.2018791]
[1731720831092,3.22497,3100.8,3100.7,0.2018791]
[1731720831678,3.22488,3100.9,3100.7,0.2018791]
[1731720831872,3.22417,3101.6,3100.8,4.04774]
[1731720832074,3.22424,3101.5,3100.9,0.42496191]
[1731720832311,3.99616,3101.8,3100.9,0.42496191]
[1731720832515,3.22421,3101.6,3101.0,3.22469]
[1731720832688,3.22421,3101.6,3101.0,0.76973419]
[1731720832886,3.22416,3101.6,3101.0,0.76973419]
[1731720833099,3.22416,3101.6,3101.0,3.99448419]
[1731720833306,3.22416,3101.6,3101.0,0.76973419]
[1731720833509,0.55,3101.7,3100.8,0.8228]
[1731720833828,3.22458,3101.2,3100.8,0.8228]
[1731720833976,3.22469,3101.1,3100.7,0.2018791]
[1731720834177,3.22484,3101.0,3100.7,0.2018791]
[1731720834405,3.22497,3100.8,3100.7,0.2018791]
[1731720835001,4.54717,3100.8,3100.7,0.2018791]
[1731720835320,3.22622,3099.6,3099.4,0.1]
[1731720835497,3.22612,3099.7,3099.4,0.1]
[1731720835705,3.22622,3099.6,3099.5,0.65332009]
[1731720836008,3.22555,3100.3,3099.5,0.65332009]
[1731720836009,3.22578,3100.1,3099.5,0.65332009]
[1731720836177,0.7722,3100.3,3099.5,0.65332009]
[1731720836377,0.55,3100.2,3099.5,0.65332009]
[1731720836609,3.2261,3099.8,3099.4,0.1]
[1731720837201,3.22613,3099.7,3099.4,0.1]
[1731720837485,3.22584,3100.0,3099.4,0.1]
[1731720837992,3.22584,3100.0,3099.4,3.32633]
[1731720838403,3.680375,3100.2,3099.4,3.32633]
[1731720838584,6.906055,3100.2,3099.4,3.32633]
[1731720838808,3.2256,3100.2,3099.5,3.2263]
[1731720839115,3.2256,3100.2,3099.6,3.22621]
[1731720839489,3.22541,3100.4,3099.7,4.04884]
[1731720839691,3.99739,3100.6,3099.7,4.04884]
[1731720839692,3.99739,3100.6,3100.0,3.22579]